fUSD/lending_fUSD_20260319
["ID","MTS","AMOUNT","RATE_DAILY","PERIOD"]
[408571022,1773899437813,-150.0,0.00010354,2]
[408571023,1773899437823,-999.99,0.00010355,2]
[408571024,1773899437832,-16874.0,0.00010355,2]
[408571025,1773899437842,-19732.37681684,0.00010363,2]
[408571026,1773899437852,-349.6216426,0.00010373,2]
[408571027,1773899437861,-9999.99,0.00010373,2]
[408571028,1773899437870,-150.99,0.00010373,2]
[408571029,1773899437883,-2113.73,0.00010373,2]
[408571030,1773899437893,-9999.99,0.00010373,2]
[408571031,1773899437903,-1547.13,0.00010373,2]
[408571032,1773899437913,-352.8,0.00010373,2]
[408571033,1773899437923,-306.41528154,0.00010373,2]
[408571035,1773899437933,-595.71313793,0.00010373,2]
[408571037,1773899437942,-1177.73885972,0.00010373,2]
[408571038,1773899437952,-1000.0,0.00010404,2]
[408571040,1773899437961,-259.87,0.00010433,2]
[408571042,1773899437970,-372.67623569,0.00010444,2]
[408571044,1773899437980,-151.0,0.00010448,2]
[408571046,1773899437989,-151.0,0.00010448,2]
[408571048,1773899437998,-151.0,0.00010448,2]
[408571050,1773899438007,-151.0,0.00010448,2]
[408571052,1773899438017,-151.0,0.00010448,2]
[408571055,1773899438026,-200.0,0.00010448,2]
[408571057,1773899438036,-151.0,0.00010448,2]
[408571059,1773899438046,-151.0,0.00010448,2]
[408571061,1773899438055,-151.0,0.00010448,2]
[408571063,1773899438065,-151.0,0.00010448,2]
[408571065,1773899438076,-151.0,0.00010448,2]
[408571067,1773899438086,-151.0,0.00010448,2]
[408571069,1773899438096,-151.0,0.00010448,2]
[408571070,1773899438105,-171.10893986,0.00010448,2]
[408571071,1773899438115,-500.0,0.00010448,2]
[408571072,1773899438125,-151.0,0.00010451,2]
[408571073,1773899438134,-5776.751,0.00010452,2]
[408571074,1773899438143,-264.524,0.00010452,2]
[408571076,1773899438152,-150.99,0.00010452,2]
[408571077,1773899438162,-299.99,0.00010452,2]
[408571078,1773899438171,-500.0,0.00010453,2]
[408571079,1773899438182,-500.0,0.00010453,2]
[408571080,1773899438193,-394.39976831,0.00010453,2]
[408571081,1773899438203,-500.0,0.00010453,2]
[408571082,1773899438213,-500.0,0.00010453,2]
[408571083,1773899438222,-500.0,0.00010453,2]
[408571084,1773899438232,-564.02476391,0.00010453,2]
[408571085,1773899438242,-500.0,0.00010453,2]
[408571086,1773899438252,-271.48959776,0.00010453,2]
[408571087,1773899438261,-500.0,0.00010453,2]
[408571088,1773899438273,-500.0,0.00010453,2]
[408571089,1773899438283,-500.0,0.00010453,2]
[408571090,1773899438292,-500.0,0.00010453,2]
[408571091,1773899438302,-500.0,0.00010453,2]
[408571092,1773899438311,-500.0,0.00010453,2]
[408571093,1773899438321,-500.0,0.00010453,2]
[408571094,1773899438331,-500.0,0.00010453,2]
[408571095,1773899438341,-500.0,0.00010453,2]
[408571096,1773899438351,-500.0,0.00010453,2]
[408571097,1773899438360,-500.0,0.00010453,2]
[408571098,1773899438370,-500.0,0.00010453,2]
[408571099,1773899438379,-500.0,0.00010453,2]
[408571100,1773899438388,-500.0,0.00010453,2]
[408571101,1773899438400,-500.0,0.00010453,2]
[408571102,1773899438410,-500.0,0.00010453,2]
[408571103,1773899438421,-615.69614737,0.00010453,2]
[408571104,1773899438431,-500.0,0.00010453,2]
[408571105,1773899438440,-500.0,0.00010453,2]
[408571106,1773899438450,-500.0,0.00010453,2]
[408571107,1773899438459,-500.0,0.00010453,2]
[408571108,1773899438468,-500.0,0.00010453,2]
[408571109,1773899438478,-500.0,0.00010453,2]
[408571110,1773899438487,-500.0,0.00010453,2]
[408571111,1773899438496,-500.0,0.00010453,2]
[408571112,1773899438506,-500.0,0.00010453,2]
[408571113,1773899438515,-500.0,0.00010453,2]
[408571114,1773899438525,-500.0,0.00010453,2]
[408571115,1773899438535,-500.0,0.00010453,2]
[408571116,1773899438547,-400.0,0.00010453,2]
[408571117,1773899438557,-2200660.0747,0.00010454,2]
[408571118,1773899438566,-500.0,0.00010473,2]
[408571119,1773899438576,-500.0,0.00010473,2]
[408571120,1773899438586,-503.01696728,0.00010473,2]
[408571121,1773899438596,-500.0,0.00010473,2]
[408571122,1773899438605,-500.0,0.00010473,2]
[408571123,1773899438615,-502.94227375,0.00010473,2]
[408571124,1773899438625,-501.33720601,0.00010473,2]
[408571125,1773899438635,-164.13740161,0.00010473,2]
[408571126,1773899438644,-501.00729745,0.00010473,2]
[408571127,1773899438660,-500.0,0.00010473,2]
[408571128,1773899438675,-500.0,0.00010473,2]
[408571129,1773899438686,-167.41696439,0.00010473,2]
[408571130,1773899438696,-500.31068947,0.00010473,2]
[408571131,1773899438706,-500.0,0.00010473,2]
[408571132,1773899438717,-500.0,0.00010473,2]
[408571133,1773899438726,-500.0,0.00010473,2]
[408571134,1773899438736,-500.2027226,0.00010473,2]
[408571135,1773899438746,-500.0,0.00010473,2]
[408571136,1773899438756,-164.94931012,0.00010473,2]
[408571137,1773899438766,-501.85391642,0.00010473,2]
[408571138,1773899438776,-500.0,0.00010473,2]
[408571139,1773899438785,-500.0,0.00010473,2]
[408571140,1773899438795,-167.36781104,0.00010473,2]
[408571141,1773899438804,-500.0,0.00010473,2]
[408571142,1773899438814,-150.0,0.00010473,2]
[408571143,1773899438824,-203.019247,0.00010475,2]
[408571144,1773899438833,-77927.40917088,0.000105,2]
[408571145,1773899438843,-151.0,0.00010551,2]
[408571146,1773899438853,-966.48181008,0.00010637,2]
[408571147,1773899438862,-500.0,0.00010747,2]
[408571148,1773899438872,-709.0,0.00010835,2]
[408571149,1773899438883,-247.3325322,0.00010835,2]
[408571150,1773899438895,-3802.24611424,0.000109,2]
[408571151,1773899438904,-500.0,0.00010958,2]
[408571152,1773899438914,-166.66,0.00010959,2]
[408571153,1773899438924,-150.0,0.00010959,2]
[408571154,1773899438934,-375.94705906,0.00010959,2]
[408571155,1773899438944,-200.0,0.00010996,2]
[408571156,1773899438953,-500.0,0.00011021,2]
[408571157,1773899438963,-1000.0,0.00011021,2]
[408571158,1773899438972,-503.63793267,0.00011021,2]
[408571159,1773899438982,-1000.0,0.00011021,2]
[408571160,1773899438992,-505.58749275,0.00011021,2]
[408571161,1773899439008,-1000.0,0.00011021,2]
[408571162,1773899439018,-1000.0,0.00011021,2]
[408571163,1773899439028,-1000.0,0.00011021,2]
[408571164,1773899439038,-70696.78773681,0.00011058,2]
[408571165,1773899439048,-261.0,0.0001106,3]
[408571166,1773899439058,-166.66,0.00011068,2]
[408571167,1773899439067,-5420.74379509,0.00011072,2]
[408571168,1773899439078,-6086.92480809,0.00011072,2]
[408571169,1773899439088,-273.487728,0.00011095,2]
[408571170,1773899439098,-10978.35188612,0.00011099,2]
[408571171,1773899439108,-10978.35188603,0.00011099,2]
[408571172,1773899439117,-20541.93936789,0.00011099,2]
[408571173,1773899439128,-20541.93936785,0.00011099,2]
[408571174,1773899439137,-567.58,0.00011131,2]
[408571175,1773899439147,-3802.24611417,0.00011163,2]
[408571176,1773899439156,-166.66,0.00011178,2]
[408571177,1773899439166,-321.01,0.00011218,2]
[408571178,1773899439176,-5000.0,0.00011279,2]
[408571179,1773899439185,-5000.0,0.00011279,2]
[408571180,1773899439195,-5000.0,0.00011279,2]
[408571181,1773899439209,-5000.0,0.00011279,2]
[408571182,1773899439219,-5000.0,0.00011279,2]
[408571183,1773899439229,-193.0,0.00011279,2]
[408571184,1773899439239,-250.0,0.00011279,2]
[408571185,1773899439249,-300.0,0.00011279,2]
[408571186,1773899439259,-300.0,0.00011279,2]
[408571187,1773899439268,-300.0,0.00011279,2]
[408571188,1773899439278,-300.0,0.00011279,2]
[408571189,1773899439288,-305.44181081,0.00011279,2]
[408571190,1773899439297,-312.18,0.00011283,2]
[408571191,1773899439307,-166.66,0.00011288,2]
[408571192,1773899439317,-349.62164254,0.00011294,2]
[408571193,1773899439326,-500.0,0.00011295,2]
[408571194,1773899439336,-9432.5755,0.00011345,2]
[408571195,1773899439346,-20541.93936785,0.00011357,2]
[408571196,1773899439356,-10978.35188603,0.00011357,2]
[408571197,1773899439366,-255.0,0.00011369,2]
[408571198,1773899439378,-420.0,0.00011384,2]
[408571199,1773899439390,-1680.0,0.00011388,2]
[408571200,1773899439400,-250.0,0.00011389,2]
[408571201,1773899439410,-250.0,0.00011389,2]
[408571202,1773899439421,-166.66,0.00011397,2]
[408571203,1773899439430,-300.0,0.00011424,2]
[408571204,1773899439440,-206.54034864,0.00011444,2]
[408571205,1773899439450,-300.0,0.00011445,2]
[408571206,1773899439461,-684.60065851,0.00011472,2]
[408571207,1773899439471,-166.66,0.00011507,2]
[408571208,1773899439481,-300.0,0.00011507,2]
[408571209,1773899439492,-300.0,0.00011522,2]
[408571210,1773899439504,-108777.98643011,0.0001154,2]
[408571211,1773899439514,-200.0,0.00011544,2]
[408571212,1773899439523,-300.0,0.00011555,2]
[408571213,1773899439533,-500.0,0.00011568,2]
[408571214,1773899439542,-1500.0,0.00011568,2]
[408571215,1773899439555,-1500.0,0.00011568,2]
[408571216,1773899439565,-500.0,0.00011568,2]
[408571217,1773899439575,-1500.0,0.00011568,2]
[408571218,1773899439587,-1500.0,0.00011568,2]
[408571219,1773899439597,-300.0,0.000116,2]
[408571220,1773899439607,-263973.6194504,0.00011651,2]
[408571221,1773899439617,-10181.7468346,0.00011652,2]
[408571222,1773899439629,-56345.4389041,0.00011652,2]
[408571223,1773899439640,-200.0,0.00011655,2]
[408571224,1773899439649,-200.0,0.00011655,2]
[408571225,1773899439659,-300.0,0.00011655,2]
[408571226,1773899439669,-200.0,0.00011655,2]
[408571227,1773899439679,-287.70846583,0.00011655,2]
[408571228,1773899439688,-151.0,0.0001167,2]
[408571229,1773899439698,-684.60065851,0.00011691,2]
[408571230,1773899439707,-500.0,0.00011699,2]
[408571231,1773899439717,-300.4,0.0001177,2]
[408571232,1773899439727,-200.0,0.00011772,2]
[408571233,1773899439736,-200.0,0.00011772,2]
[408571234,1773899439746,-200.0,0.00011772,2]
[408571235,1773899439755,-503.4765885,0.00011842,2]
[408571236,1773899439765,-20541.93936785,0.00011849,2]
[408571237,1773899439775,-10978.35188603,0.00011849,2]
[408571238,1773899439784,-1707.26372496,0.0001185,2]
[408571239,1773899439794,-200.0,0.00011889,2]
[408571240,1773899439803,-200.0,0.00011889,2]
[408571241,1773899439813,-200.0,0.00011889,2]
[408571242,1773899439822,-3300.0,0.000119,4]
[408571243,1773899439832,-342.30032926,0.00011901,2]
[408571244,1773899439842,-684.6006585,0.0001191,2]
[408571245,1773899439852,-327.38923,0.00011921,2]
[408571246,1773899439862,-3802.24611417,0.00011952,2]
[408571247,1773899439871,-200.0,0.00012008,2]
[408571248,1773899439880,-200.0,0.00012008,2]
[408571249,1773899439889,-200.0,0.00012008,2]
[408571250,1773899439900,-1841.60754429,0.00012083,2]
[408571251,1773899439909,-477.98,0.00012087,2]
[408571252,1773899439919,-200.0,0.00012092,2]
[408571253,1773899439929,-223.058547,0.00012094,2]
[408571254,1773899439938,-468.11801,0.00012094,2]
[408571255,1773899439948,-255.790207,0.00012094,2]
[408571256,1773899439957,-467.387886,0.00012094,2]
[408571257,1773899439966,-2000.0,0.00012116,2]
[408571258,1773899439975,-242.14675878,0.00012116,2]
[408571259,1773899439984,-2000.0,0.00012116,2]
[408571260,1773899439993,-514.00185196,0.00012116,2]
[408571261,1773899440002,-261.0,0.0001212,3]
[408571262,1773899440011,-342.30032926,0.00012121,2]
[408571263,1773899440021,-342.30032926,0.00012121,2]
[408571264,1773899440030,-200.0,0.00012128,2]
[408571265,1773899440040,-200.0,0.00012128,2]
[408571266,1773899440050,-200.0,0.00012128,2]
[408571267,1773899440059,-10000.0,0.00012164,2]
[408571268,1773899440068,-2738.40263403,0.00012211,2]
[408571269,1773899440078,-349.62164254,0.00012215,2]
[408571270,1773899440087,-500.0,0.00012219,2]
[408571271,1773899440096,-497.06982625,0.00012232,2]
[408571272,1773899440106,-359.014622,0.00012263,2]
[408571273,1773899440115,-342.30032926,0.0001234,2]
[408571274,1773899440126,-342.30032926,0.0001234,2]
[408571275,1773899440135,-20541.93936785,0.00012341,2]
[408571276,1773899440145,-10978.35188603,0.00012341,2]
[408571277,1773899440154,-342.30032926,0.00012341,2]
[408571278,1773899440164,-300.4,0.00012389,2]
[408571279,1773899440173,-2738.40263403,0.0001243,2]
[408571280,1773899440183,-433.0,0.00012487,2]
[408571281,1773899440193,-309.37821434,0.000125,2]
[408571282,1773899440203,-299.0,0.00012514,2]
[408571283,1773899440213,-587.0,0.00012518,2]
[408571284,1773899440226,-2351.0,0.00012527,2]
[408571285,1773899440237,-1963.04019393,0.0001253,2]
[408571286,1773899440247,-342.30032924,0.00012559,2]
[408571287,1773899440256,-342.30032926,0.00012559,2]
[408571288,1773899440266,-342.30032926,0.0001256,2]
[408571289,1773899440275,-200.0,0.0001264,2]
[408571290,1773899440285,-2738.40263404,0.00012649,2]
[408571291,1773899440294,-2500.0,0.00012664,2]
[408571292,1773899440303,-2500.0,0.00012664,2]
[408571293,1773899440313,-3802.24611417,0.00012742,2]
[408571294,1773899440322,-342.30032926,0.00012779,2]
[408571295,1773899440332,-20541.93936785,0.00012832,2]
[408571296,1773899440341,-10978.35188603,0.00012832,2]
[408571297,1773899440351,-1675.91,0.0001287,2]
[408571298,1773899440361,-7836.06,0.0001287,2]
[408571299,1773899440371,-567.58,0.00012953,2]
[408571300,1773899440380,-342.30032924,0.00012998,2]
[408571301,1773899440390,-5641.13925074,0.00013,2]
[408571302,1773899440400,-5165.7566742,0.00013,15]
[408571303,1773899440409,-442.29976081,0.00013,2]
[408571304,1773899440419,-300.4,0.00013009,2]
[408571305,1773899440428,-300.0,0.000131,2]
[408571306,1773899440438,-500.0,0.00013123,2]
[408571307,1773899440448,-58900.4759829,0.0001313,2]
[408571308,1773899440458,-12572.3668063,0.00013131,2]
[408571309,1773899440467,-349.62164254,0.00013137,2]
[408571310,1773899440477,-595.71313793,0.00013137,2]
[408571311,1773899440486,-150.75759761,0.00013144,2]
[408571312,1773899440496,-811.08,0.00013144,2]
[408571313,1773899440506,-500.0,0.00013147,2]
[408571314,1773899440515,-500.0,0.00013147,2]
[408571315,1773899440525,-153.65437975,0.00013147,2]
[408571316,1773899440536,-1136.0,0.00013147,2]
[408571317,1773899440550,-1136.0,0.00013147,2]
[408571318,1773899440560,-1136.0,0.00013147,2]
[408571319,1773899440570,-1136.0,0.00013147,2]
[408571320,1773899440579,-1136.0,0.00013147,2]
[408571321,1773899440590,-1136.0,0.00013147,2]
[408571322,1773899440602,-1136.0,0.00013147,2]
[408571323,1773899440613,-1136.0,0.00013147,2]
[408571324,1773899440623,-1136.0,0.00013147,2]
[408571325,1773899440632,-1136.0,0.00013147,2]
[408571326,1773899440642,-1136.0,0.00013147,2]
[408571327,1773899440652,-1136.0,0.00013147,2]
[408571328,1773899440661,-1136.0,0.00013147,2]
[408571329,1773899440671,-1136.0,0.00013147,2]
[408571330,1773899440681,-1136.0,0.00013147,2]
[408571331,1773899440690,-1136.0,0.00013147,2]
[408571332,1773899440700,-1136.0,0.00013147,2]
[408571333,1773899440709,-1136.0,0.00013147,2]
[408571334,1773899440718,-1136.0,0.00013147,2]
[408571335,1773899440727,-1136.0,0.00013147,2]
[408571336,1773899440737,-1136.0,0.00013147,2]
[408571337,1773899440747,-1136.0,0.00013147,2]
[408571338,1773899440756,-500.0,0.00013147,2]
[408571339,1773899440766,-500.0,0.00013147,2]
[408571340,1773899440778,-500.0,0.00013147,2]
[408571341,1773899440787,-1136.0,0.00013147,2]
[408571342,1773899440796,-500.0,0.00013147,2]
[408571343,1773899440808,-500.0,0.00013147,2]
[408571344,1773899441096,-500.0,0.00013147,2]
[408571345,1773899441105,-484.98041623,0.00013147,2]
[408571346,1773899441115,-1139.93350754,0.00013147,2]
[408571347,1773899441124,-261.0,0.0001318,3]
[408571348,1773899441133,-2189.17,0.0001318,2]
[408571349,1773899441142,-312.18,0.00013187,2]
[408571350,1773899441152,-200.0,0.00013188,2]
[408571351,1773899441161,-2271.8548017,0.00013193,2]
[408571352,1773899441170,-1857.79,0.000132,2]
[408571353,1773899441179,-240.61,0.000132,2]
[408571354,1773899441188,-2970.24,0.000132,2]
[408571355,1773899441197,-393.44,0.000132,2]
[408571356,1773899441206,-1885.1,0.000132,2]
[408571357,1773899441215,-259.5,0.000132,2]
[408571358,1773899441224,-2081.24,0.000132,2]
[408571359,1773899441234,-2418.91,0.000132,2]
[408571360,1773899441243,-522.34,0.000132,2]
[408571361,1773899441252,-2149.14,0.000132,2]
[408571362,1773899441261,-1707.92,0.000132,2]
[408571363,1773899441270,-2858.27,0.000132,2]
[408571364,1773899441279,-527.7,0.000132,2]
[408571365,1773899441288,-2569.83,0.000132,2]
[408571366,1773899441297,-249.74,0.000132,2]
[408571367,1773899441307,-1683.02,0.000132,2]
[408571368,1773899441317,-2476.25,0.000132,2]
[408571369,1773899441325,-879.67,0.000132,2]
[408571370,1773899441334,-2863.64,0.000132,2]
[408571371,1773899441345,-2436.69,0.000132,2]
[408571372,1773899441354,-2591.32,0.000132,2]
[408571373,1773899441363,-1824.36,0.000132,2]
[408571374,1773899441377,-2165.21,0.000132,2]
[408571375,1773899441388,-760.83,0.000132,2]
[408571376,1773899441398,-2693.45,0.000132,2]
[408571377,1773899441407,-243.23,0.000132,2]
[408571378,1773899441416,-2114.42,0.000132,2]
[408571379,1773899441425,-1555.94,0.000132,2]
[408571380,1773899441434,-1175.98,0.000132,2]
[408571381,1773899441444,-293.99,0.000132,2]
[408571382,1773899441453,-293.99,0.000132,2]
[408571383,1773899441464,-293.99,0.000132,2]
[408571384,1773899441474,-293.99,0.000132,2]
[408571385,1773899441483,-1000.0,0.00013201,2]
[408571386,1773899441491,-500.0,0.00013205,2]
[408571387,1773899441500,-1000.0,0.00013212,2]
[408571388,1773899441510,-2677.93691604,0.00013212,2]
[408571389,1773899441519,-440.95,0.00013289,2]
[408571390,1773899441530,-20541.93936785,0.00013324,2]
[408571391,1773899441540,-10978.35188603,0.00013324,2]
[408571392,1773899441553,-504.0,0.00013333,2]
[408571393,1773899441563,-504.0,0.00013333,2]
[408571394,1773899441572,-440.96453338,0.0001337,2]
[408571395,1773899441582,-208.09726696,0.00013404,2]
[408571396,1773899441595,-811.08,0.00013418,2]
[408571397,1773899441605,-160.0,0.00013421,2]
[408571398,1773899441614,-979.16666667,0.00013421,2]
[408571399,1773899441626,-3240.0,0.00013425,2]
[408571400,1773899441635,-1600.0,0.00013459,2]
[408571401,1773899441645,-13142.4726388,0.0001346,2]
[408571402,1773899441654,-2805.2742189,0.00013461,2]
[408571403,1773899441663,-209.2,0.00013462,2]
[408571404,1773899441673,-299.0,0.00013514,2]
[408571405,1773899441682,-3802.24611417,0.00013531,2]
[408571406,1773899441691,-506.9193257,0.00013537,2]
[408571407,1773899441700,-151.0,0.00013573,2]
[408571408,1773899441710,-166.66,0.00013577,2]
[408571409,1773899441719,-1062.0,0.000136,2]
[408571410,1773899441728,-300.4,0.00013628,2]
[408571411,1773899441737,-372.67623569,0.00013685,2]
[408571412,1773899441746,-811.08,0.00013692,2]
[408571413,1773899441756,-150.0,0.00013692,2]
[408571414,1773899441766,-172.33361758,0.00013692,2]
[408571415,1773899441775,-150.0,0.00013692,2]
[408571416,1773899441784,-500.0,0.00013692,2]
[408571417,1773899441793,-150.0,0.00013692,2]
[408571418,1773899441802,-500.0,0.00013692,2]
[408571419,1773899441811,-150.0,0.00013692,2]
[408571420,1773899441820,-190.77647721,0.00013692,2]
[408571421,1773899441829,-239.07414574,0.00013692,2]
[408571422,1773899441838,-150.0,0.00013692,2]
[408571423,1773899441849,-150.0,0.00013692,2]
[408571424,1773899441858,-500.0,0.00013692,2]
[408571425,1773899441867,-150.94227271,0.00013692,2]
[408571426,1773899441877,-500.0,0.00013692,2]
[408571427,1773899441886,-227.30575448,0.00013692,2]
[408571428,1773899441894,-500.0,0.00013692,2]
[408571429,1773899441905,-500.0,0.00013692,2]
[408571430,1773899441914,-500.0,0.00013692,2]
[408571431,1773899441923,-500.0,0.00013692,2]
[408571432,1773899441932,-500.0,0.00013692,2]
[408571433,1773899441942,-500.0,0.00013692,2]
[408571434,1773899441953,-500.0,0.00013692,2]
[408571435,1773899441962,-500.0,0.00013692,2]
[408571436,1773899441972,-500.0,0.00013692,2]
[408571437,1773899441981,-500.0,0.00013692,2]
[408571438,1773899441990,-500.0,0.00013692,2]
[408571439,1773899441999,-500.0,0.00013692,2]
[408571440,1773899442009,-500.0,0.00013692,2]
[408571441,1773899442018,-500.0,0.00013692,2]
[408571442,1773899442027,-500.0,0.00013692,2]
[408571443,1773899442037,-500.0,0.00013692,2]
[408571444,1773899442046,-500.0,0.00013692,2]
[408571445,1773899442055,-909.0,0.00013692,2]
[408571446,1773899442064,-500.0,0.00013692,2]
[408571447,1773899442074,-500.0,0.00013692,2]
[408571448,1773899442083,-909.0,0.00013692,2]
[408571449,1773899442093,-500.0,0.00013692,2]
[408571450,1773899442102,-500.0,0.00013692,2]
[408571451,1773899442113,-500.0,0.00013692,2]
[408571452,1773899442122,-909.0,0.00013692,2]
[408571453,1773899442132,-500.0,0.00013692,2]
[408571454,1773899442142,-500.0,0.00013692,2]
[408571455,1773899442152,-500.0,0.00013692,2]
[408571456,1773899442161,-909.0,0.00013692,2]
[408571457,1773899442171,-500.0,0.00013692,2]
[408571458,1773899442180,-500.0,0.00013692,2]
[408571459,1773899442190,-500.0,0.00013692,2]
[408571460,1773899442199,-500.0,0.00013692,2]
[408571461,1773899442209,-909.0,0.00013692,2]
[408571462,1773899442219,-500.0,0.00013692,2]
[408571463,1773899442228,-206.79155437,0.00013692,2]
[408571464,1773899442237,-909.0,0.00013692,2]
[408571465,1773899442246,-500.0,0.00013692,2]
[408571466,1773899442256,-500.0,0.00013692,2]
[408571467,1773899442265,-909.0,0.00013692,2]
[408571468,1773899442274,-500.0,0.00013692,2]
[408571469,1773899442283,-500.0,0.00013692,2]
[408571470,1773899442292,-500.0,0.00013692,2]
[408571471,1773899442302,-909.0,0.00013692,2]
[408571472,1773899442311,-500.0,0.00013692,2]
[408571473,1773899442321,-500.0,0.00013692,2]
[408571474,1773899442331,-909.0,0.00013692,2]
[408571475,1773899442341,-500.0,0.00013692,2]
[408571476,1773899442350,-500.0,0.00013692,2]
[408571477,1773899442360,-500.0,0.00013692,2]
[408571478,1773899442370,-909.0,0.00013692,2]
[408571479,1773899442379,-500.0,0.00013692,2]
[408571480,1773899442389,-500.0,0.00013692,2]
[408571481,1773899442399,-500.0,0.00013692,2]
[408571482,1773899442409,-320.05942927,0.00013692,2]
[408571483,1773899442419,-909.0,0.00013692,2]
[408571484,1773899442429,-500.0,0.00013692,2]
[408571485,1773899442439,-238.49988002,0.00013692,2]
[408571486,1773899442449,-500.0,0.00013692,2]
[408571487,1773899442463,-451.64334977,0.00013692,2]
[408571488,1773899442476,-909.0,0.00013692,2]
[408571489,1773899442486,-150.0,0.00013692,2]
[408571490,1773899442495,-500.0,0.00013692,2]
[408571491,1773899442505,-909.0,0.00013692,2]
[408571492,1773899442515,-150.0,0.00013692,2]
[408571493,1773899442525,-500.0,0.00013692,2]
[408571494,1773899442535,-909.0,0.00013692,2]
[408571495,1773899442545,-500.0,0.00013692,2]
[408571496,1773899442557,-500.0,0.00013692,2]
[408571498,1773899442567,-909.0,0.00013692,2]
[408571499,1773899442576,-909.0,0.00013692,2]
[408571500,1773899442587,-500.0,0.00013692,2]
[408571501,1773899442597,-484.38346012,0.00013692,2]
[408571502,1773899442607,-909.0,0.00013692,2]
[408571503,1773899442616,-909.0,0.00013692,2]
[408571504,1773899442628,-909.0,0.00013692,2]
[408571505,1773899442637,-909.0,0.00013692,2]
[408571506,1773899442647,-909.0,0.00013692,2]
[408571507,1773899442657,-909.0,0.00013692,2]
[408571508,1773899442667,-909.0,0.00013692,2]
[408571510,1773899442677,-910.07406063,0.00013692,2]
[408571511,1773899442687,-500.0,0.00013692,2]
[408571512,1773899442697,-500.0,0.00013692,2]
[408571513,1773899442707,-500.0,0.00013692,2]
[408571514,1773899442718,-500.0,0.00013692,2]
[408571515,1773899442729,-500.0,0.00013692,2]
[408571516,1773899442739,-481.94161916,0.00013692,2]
[408571517,1773899443138,-18.05838084,0.00013692,2]
[408571518,1773899443148,-500.0,0.00013692,2]
[408571519,1773899443157,-500.0,0.00013692,2]
[408571520,1773899443166,-154.97068236,0.00013692,2]
[408571521,1773899443175,-330.84223283,0.00013692,2]
[408571522,1773899443210,-169.15776717,0.00013692,2]
[408571524,1773899443219,-177.88239018,0.00013692,2]
[408571525,1773899443230,-322.11760982,0.00013692,2]
[408571526,1773899443239,-622.70708888,0.00013692,2]
[408571527,1773899443248,-500.0,0.00013692,2]
[408571528,1773899443257,-500.0,0.00013692,2]
[408571529,1773899443266,-500.0,0.00013692,2]
[408571530,1773899443275,-510.84159048,0.00013692,2]
[408571531,1773899443284,-500.0,0.00013695,2]
[408571532,1773899443293,-35.85823825,0.00013695,2]
[408571533,1773899443308,-464.14176175,0.00013695,2]
[408571534,1773899443317,-500.0,0.00013695,2]
[408571535,1773899443326,-500.0,0.00013695,2]
[408571537,1773899443335,-500.0,0.00013695,2]
[408571538,1773899443344,-419.56029481,0.00013695,2]
[408571539,1773899443355,-500.0,0.00013695,2]
[408571540,1773899443364,-500.0,0.00013695,2]
[408571541,1773899443372,-500.0,0.00013695,2]
[408571542,1773899443382,-596.68097798,0.00013695,2]
[408571543,1773899443391,-131.87966439,0.00013695,2]
[408571544,1773899443402,-368.12033561,0.00013695,2]